bitfinex-derivatives/quotes_ETHF0:USTF0_20250411
["timestamp","ask_amount","ask_price","bid_price","bid_amount"]
[1744389849587,5.21711401,1572.2,1572.1,1.27279]
[1744389849787,3.94440401,1572.2,1572.1,1.27279]
[1744389850098,5.21711401,1572.2,1572.1,1.27279]
[1744389850598,3.94440401,1572.2,1572.1,1.27279]
[1744389851597,5.21711401,1572.2,1572.1,1.27279]
[1744389852095,1.27287,1572.0,1571.9,0.00953652]
[1744389852297,4.48067,1572.0,1571.9,0.00953652]
[1744389852494,11.13167401,1572.0,1571.9,0.00953652]
[1744389852807,12.89007401,1572.0,1571.9,0.00953652]
[1744389853901,15.04257401,1572.0,1571.9,0.00953652]
[1744389854595,10.04257401,1572.0,1571.9,0.00953652]
[1744389855999,10.04257401,1572.0,1571.9,1.28248652]
[1744389856191,3.92770401,1572.0,1571.9,4.49028652]
[1744389856392,2.16930401,1572.0,1571.9,4.49028652]
[1744389856586,2.16930401,1572.0,1571.9,6.66098652]
[1744389856999,2.16930401,1572.0,1571.9,3.45318652]
[1744389857296,2.16930401,1572.0,1571.9,6.66098652]
[1744389857897,3.44217401,1572.0,1571.9,0.00953652]
[1744389858698,2.16930401,1572.0,1571.9,4.49028652]
[1744389859100,0.01680401,1572.0,1571.9,6.67728652]
[1744389859798,0.01680401,1572.0,1571.9,11.67728652]
[1744389860200,0.01680401,1572.0,1571.9,7.14864752]
[1744389860601,1.28967401,1572.0,1571.9,3.46948652]
[1744389860801,0.01680401,1572.0,1571.9,6.67728652]
[1744389861403,1.28967401,1572.0,1571.9,6.67728652]
[1744389861702,3.71127401,1572.0,1571.9,0.00953652]
[1744389861899,3.71127401,1572.0,1571.9,1.28248652]
[1744389862807,3.71127401,1572.0,1571.9,0.00953652]
[1744389863502,5.47967401,1572.0,1571.9,1.28248652]
[1744389863702,10.47967401,1572.0,1571.9,0.00953652]
[1744389863901,1.27328,1571.5,1571.3,16.1072103]
[1744389864302,1.29008401,1571.5,1571.4,11.1259573]
[1744389864501,3.71568401,1571.5,1571.4,11.1259573]
[1744389864910,3.71568401,1571.5,1571.4,9.8525973]
[1744389865403,13.55868401,1571.5,1571.4,9.8525973]
[1744389865799,16.76648401,1571.5,1571.4,9.8525973]
[1744389866204,1.27336,1571.4,1571.3,0.00953652]
[1744389866412,3.69896,1571.4,1571.3,0.00953652]
[1744389866597,1.27368,1571.0,1570.9,9.8525973]
[1744389867109,1.29048401,1571.0,1570.9,9.8525973]
[1744389867602,2.47420401,1571.0,1570.9,11.1263573]
[1744389867812,3.74788401,1571.0,1570.9,9.8525973]
[1744389868200,3.74788401,1571.0,1570.9,11.1263573]
[1744389868406,3.74788401,1571.0,1570.9,9.8525973]
[1744389869813,5.65768401,1571.0,1570.9,9.8525973]
[1744389870310,1.27376,1570.9,1570.8,0.00953652]
[1744389870511,2.447,1570.9,1570.8,6.82517652]
[1744389870810,0.01680401,1570.9,1570.8,6.82512652]
[1744389871610,0.01680401,1570.9,1570.8,11.82512652]
[1744389872011,0.01680401,1570.9,1570.8,16.67012652]
[1744389873710,0.01680401,1570.9,1570.8,11.67012652]
[1744389874114,0.01680401,1570.9,1570.8,16.67012652]
[1744389874804,0.01680401,1570.9,1570.8,6.82512652]
[1744389875006,0.01680401,1570.9,1570.8,4.49112652]
[1744389875606,1.29056401,1570.9,1570.8,4.49112652]
[1744389875807,0.01680401,1570.9,1570.8,4.49112652]
[1744389876009,1.29056401,1570.9,1570.8,0.00953652]
[1744389876613,3.61296401,1570.9,1570.8,0.00953652]
[1744389876909,5.59716401,1570.9,1570.8,1.28337652]
[1744389877112,3.61296401,1570.9,1570.8,4.49117652]
[1744389877611,0.01680401,1570.9,1570.8,9.49117652]
[1744389877821,0.01680401,1570.9,1570.8,11.84447652]
[1744389878316,3.2576,1571.4,1571.0,3.18405]
[1744389878516,2.3224,1571.4,1571.3,4.48124]
[1744389878716,2.09663652,1571.6,1571.4,1.27329]
[1744389878920,1.27329,1571.5,1571.4,1.27329]
[1744389879311,3.60515652,1571.6,1571.5,1.27328]
[1744389879615,0.00953652,1571.6,1571.5,1.27328]
[1744389879820,0.00953652,1571.6,1571.5,9.48108]
[1744389880118,1.2729,1572.0,1571.9,1.27295]
[1744389881015,3.6181,1572.1,1572.0,1.27287]
[1744389881212,3.62763652,1572.1,1572.0,3.2078]
[1744389881415,1.27287,1572.0,1571.9,1.2729]
[1744389881714,3.61817,1572.0,1571.9,1.2729]
[1744389881917,2.3453,1572.0,1571.9,1.2729]
[1744389882114,3.61817,1572.0,1571.9,1.2729]
[1744389882825,2.3453,1572.0,1571.9,1.2729]
[1744389883019,3.61817,1572.0,1571.9,1.2729]
[1744389883219,2.3453,1572.0,1571.9,1.2729]
[1744389883620,2.31903652,1572.1,1572.0,1.27287]
[1744389883813,2.31903652,1572.1,1572.0,4.48067]
[1744389884421,3.59182652,1572.1,1572.0,4.48067]
[1744389884619,1.27295,1571.9,1571.8,3.21733652]
[1744389884813,0.00953652,1572.1,1572.0,1.27287]
[1744389885014,0.00953652,1572.1,1572.0,4.48067]
[1744389889623,0.00953652,1572.1,1572.0,5.92127]
[1744389892322,1.28232652,1572.1,1572.0,1.27287]
[1744389892929,3.69682652,1572.1,1572.0,1.27287]
[1744389893122,2.42403652,1572.1,1572.0,4.48067]
[1744389893423,2.42403652,1572.1,1572.0,6.78957]
[1744389894325,3.69682652,1572.1,1572.0,1.27287]
[1744389894829,2.42403652,1572.1,1572.0,4.48067]
[1744389895029,3.69682652,1572.1,1572.0,4.48067]
[1744389895215,2.42403652,1572.1,1572.0,4.48067]
[1744389895618,0.00953652,1572.1,1572.0,4.48067]
[1744389895826,3.70842652,1572.1,1572.0,4.48067]
[1744389896031,3.70842652,1572.1,1572.0,1.27287]
[1744389896531,2.43563652,1572.1,1572.0,4.48067]
[1744389896925,2.055,1572.3,1572.2,1.27271]
[1744389897124,2.04201039,1572.3,1572.2,4.48051]
[1744389897731,4.47931039,1572.3,1572.2,4.48051]
[1744389898031,5.75194039,1572.3,1572.2,4.48051]
[1744389898231,4.47931039,1572.3,1572.2,4.48051]
[1744389898431,4.47931039,1572.3,1572.2,6.85851]
[1744389900235,2.4373,1572.3,1572.2,6.85851]
[1744389900635,0.00943414,1572.4,1572.3,1.27263]
[1744389900834,0.00943414,1572.4,1572.3,8.48353]
[1744389901029,1.9575,1572.7,1572.3,12.2109]
[1744389901240,1.9575,1572.7,1572.6,4.48018]
[1744389901241,4.3998,1572.7,1572.6,4.48018]
[1744389901534,4.3998,1572.7,1572.6,9.33698401]
[1744389901726,4.3998,1572.7,1572.6,50.13698401]
[1744389901927,4.3998,1572.7,1572.6,6.12918401]
[1744389902124,10.6721,1572.7,1572.6,0.01680401]
[1744389904034,13.8799,1572.7,1572.6,0.01680401]
[1744389904236,10.6721,1572.7,1572.6,0.01680401]
[1744389904932,1.27263,1572.3,1572.2,4.48049]
[1744389905127,1.28943401,1572.3,1572.2,4.48049]
[1744389905327,0.01680401,1572.3,1572.2,4.48049]
[1744389905840,4.53570401,1572.3,1572.2,4.48049]
[1744389906536,4.84,1572.9,1572.3,3.18158]
[1744389906739,2.25889599,1572.6,1572.5,1.27247]
[1744389907238,2.25889599,1572.6,1572.5,4.48027]
[1744389908338,3.2078,1573.4,1572.6,3.18077]
[1744389908538,10.4298,1573.1,1572.7,3.2078]
[1744389908837,1.27226,1572.8,1572.7,1.28180652]
[1744389909537,4.0697,1573.1,1572.7,3.21733652]
[1744389909838,1.27213,1573.0,1572.9,1.27213]
[1744389910035,3.72383,1573.0,1572.8,1.27216]
[1744389910237,1.27214,1572.9,1572.8,1.27216]
[1744389910440,1.27222,1572.8,1572.7,3.21733652]
[1744389910639,1.27222,1572.8,1572.7,0.00953652]
[1744389910830,1.27255,1572.4,1572.3,3.2078]
[1744389911030,1.27263,1572.3,1572.2,1.27269]
[1744389911331,1.27271,1572.2,1572.1,4.48052]
[1744389911537,4.38180401,1572.3,1572.2,1.27271]
[1744389911736,5.6414444,1572.3,1572.1,1.27273]
[1744389911939,3.18593,1572.3,1572.2,1.25590599]
[1744389912333,1.27271,1572.2,1572.1,3.2078]
[1744389912543,1.27279,1572.1,1572.0,1.28235652]
[1744389912840,1.27276,1572.2,1572.0,0.00953652]
[1744389913037,1.9133,1572.3,1572.0,0.00953652]
[1744389913238,3.18599,1572.3,1572.2,1.27271]
[1744389913434,1.27272,1572.2,1572.1,1.27273]
[1744389913626,1.90031039,1572.3,1572.2,1.27271]
[1744389913831,1.88732078,1572.3,1572.2,1.27271]
[1744389914032,5.21285078,1572.3,1572.2,1.27271]
[1744389914338,5.21285078,1572.3,1572.1,1.27273]
[1744389914738,1.27271,1572.2,1572.1,1.27273]
[1744389914939,3.61301,1572.2,1572.1,1.25974039]
[1744389915440,2.3403,1572.2,1572.1,1.25974039]
[1744389915641,1.27279,1572.1,1572.0,0.00953652]
[1744389916139,6.27279,1572.1,1572.0,0.00953652]
[1744389916437,3.58979,1572.1,1572.0,1.28240652]
[1744389916739,2.317,1572.1,1572.0,1.28240652]
[1744389917339,3.58979,1572.1,1572.0,1.28240652]
[1744389917934,11.79759,1572.1,1572.0,0.00953652]
[1744389918140,8.58979,1572.1,1572.0,0.00953652]
[1744389919140,1.27311,1571.7,1571.6,8.0458]
[1744389919341,1.27327,1571.6,1571.4,101.996]
[1744389919637,1.27327,1571.6,1571.5,1.27328]
[1744389919937,2.3553,1571.7,1571.6,1.27319]
[1744389920241,1.27319,1571.6,1571.5,1.28278652]
[1744389920535,1.27319,1571.6,1571.5,0.00953652]
[1744389921240,3.62848,1571.7,1571.5,1.28281652]
[1744389921631,3.62844,1571.7,1571.5,2.40013652]
[1744389921832,2.3822,1571.6,1571.5,3.67341652]
[1744389923143,3.8873,1571.8,1571.7,1.27311]
[1744389923339,3.8873,1571.8,1571.7,4.48091]
[1744389923340,1.9469,1571.8,1571.7,4.48091]
[1744389923538,1.27274,1572.2,1571.8,3.18241]
[1744389923843,1.27274,1572.2,1572.1,1.27279]
[1744389924437,1.27279,1572.1,1572.0,2.3906]
[1744389924639,3.18218,1572.0,1571.5,1.48383652]
[1744389924847,7.65958,1572.0,1571.6,2.3196]
[1744389925043,1.27311,1571.7,1571.6,3.59274]
[1744389925243,2.4046,1571.9,1571.5,8.41252652]
[1744389925444,3.67761,1571.9,1571.8,1.27303]
[1744389925836,1.27311,1571.7,1571.6,3.59277]
[1744389926338,1.27311,1571.7,1571.6,1.27317]
[1744389926538,1.27319,1571.6,1571.5,8.82216652]
[1744389926738,3.67779,1571.6,1571.5,8.82216652]
[1744389926934,2.4046,1571.6,1571.5,8.82216652]
[1744389927137,3.67779,1571.6,1571.5,8.82216652]
[1744389927847,2.4046,1571.6,1571.5,8.82216652]
[1744389928734,3.67779,1571.6,1571.5,8.82216652]
[1744389928940,2.4046,1571.6,1571.5,6.50256652]
[1744389929640,3.67779,1571.6,1571.5,6.50256652]
[1744389930039,3.67779,1571.6,1571.5,4.49056652]
[1744389930233,3.67779,1571.6,1571.5,0.00953652]
[1744389930438,8.67779,1571.6,1571.5,0.00953652]
[1744389930639,3.67779,1571.6,1571.5,4.49061652]
[1744389930847,2.4046,1571.6,1571.5,4.49061652]
[1744389931149,3.67779,1571.6,1571.5,0.00953652]
[1744389931441,5.69429,1571.6,1571.5,1.28281652]
[1744389931850,5.69429,1571.6,1571.5,0.00953652]
[1744389932048,5.69429,1571.6,1571.5,1.28281652]
[1744389932248,5.69429,1571.6,1571.5,4.49061652]
[1744389933037,5.69429,1571.6,1571.5,0.00953652]
[1744389934342,10.69429,1571.6,1571.5,0.00953652]
[1744389934547,1.27336,1571.4,1571.3,5.17343]
[1744389934749,4.48116,1571.4,1571.3,5.17343]
[1744389935143,4.48116,1571.4,1571.0,9.8525973]
[1744389935144,1.2736,1571.1,1571.0,9.8525973]
[1744389936444,3.2469,1571.1,1570.9,0.00953652]
[1744389936750,2.3446,1571.0,1570.9,3.58569652]
[1744389936947,3.61828,1571.0,1570.9,3.58569652]
[1744389937246,3.61828,1571.0,1570.9,0.00953652]
[1744389937945,8.61828,1571.0,1570.9,0.00953652]
[1744389938444,5.73128,1571.0,1570.9,0.00953652]
[1744389938953,10.73128,1571.0,1570.9,0.00953652]
[1744389940754,5.73128,1571.0,1570.9,0.00953652]
[1744389940954,10.73128,1571.0,1570.9,0.00953652]
[1744389941457,1.27409,1570.5,1570.4,3.2078]
[1744389941846,1.27425,1570.3,1570.2,46.10957]
[1744389942049,2.2738,1570.4,1570.2,47.3043]
[1744389942353,3.54802,1570.4,1570.2,5.30963]
[1744389942553,1.27425,1570.3,1570.2,7.77863]
[1744389942754,2.2738,1570.3,1570.2,7.77863]
[1744389943157,3.54805,1570.3,1570.2,6.5043]
[1744389943454,3.54805,1570.3,1570.2,7.77863]
[1744389943754,3.54805,1570.3,1570.2,5.30963]
[1744389943958,0.00953652,1570.5,1570.2,6.3741]
[1744389944253,0.00953652,1570.5,1570.4,1.27417]
[1744389944757,0.00953652,1570.5,1570.4,8.61297]
[1744389951158,0.00953652,1570.5,1570.4,9.11727666]
[1744389951364,0.00953652,1570.5,1570.4,8.61297]
[1744389951863,6.52e-06,1570.5,1570.4,8.61297]
[1744389952047,6.52e-06,1570.5,1570.4,3.61297]
[1744389952254,1.27409652,1570.5,1570.4,1.27417]
[1744389953060,5.70166013,1570.5,1570.4,1.27417]
[1744389953353,1.27425,1570.4,1570.3,1.2742]
[1744389953651,3.59155,1570.4,1570.3,1.2742]
[1744389954558,1.27433,1570.2,1570.1,0.00953652]
[1744389954764,5.70982,1570.3,1570.1,0.00953652]
[1744389954959,3.69413,1570.2,1570.1,1.28394652]
[1744389955359,3.69413,1570.2,1570.1,4.49174652]
[1744389955563,3.69413,1570.2,1570.1,6.85334652]
[1744389955762,2.4198,1570.2,1570.1,6.85334652]
[1744389956464,3.69413,1570.2,1570.1,6.85334652]
[1744389956664,2.4198,1570.2,1570.1,6.85334652]
[1744389957167,3.69413,1570.2,1570.1,6.85334652]
[1744389958264,3.69413,1570.2,1570.1,3.64554652]
[1744389958764,3.69413,1570.2,1570.1,6.85334652]
[1744389959453,1.2743,1570.3,1570.2,1.27433]
[1744389959665,3.5084,1570.3,1570.2,1.27433]
[1744389960057,3.5084,1570.3,1570.2,3.63343]
[1744389960867,1.28362652,1570.5,1570.4,1.27417]
[1744389961164,1.28362652,1570.5,1570.4,4.48197]
[1744389961364,1.27417,1570.4,1570.3,5.67872]
[1744389961566,1.27425,1570.3,1570.2,4.48209]
[1744389961959,1.27425,1570.3,1570.2,4.48213]
[1744389962668,3.66935,1570.3,1570.2,4.48213]
[1744389963172,1.27433,1570.2,1570.1,0.00953652]
[1744389963361,3.66943,1570.2,1570.1,0.00953652]
[1744389964271,3.66943,1570.2,1570.1,1.28394652]
[1744389964470,3.66943,1570.2,1570.1,0.00953652]
[1744389965466,3.336,1570.4,1570.3,1.27425]
[1744389965963,3.336,1570.4,1570.1,3.38268652]
[1744389965964,1.27433,1570.2,1570.1,3.38268652]
[1744389966159,1.27431,1570.3,1570.2,1.27429]
[1744389966371,1.27433,1570.2,1570.1,3.38269652]
[1744389966677,1.27433,1570.2,1570.1,3.8897575]
[1744389966866,1.27433,1570.2,1570.1,6.2637575]
[1744389967572,1.27433,1570.2,1570.1,4.9893975]
[1744389967870,1.27433,1570.2,1570.1,1.7910075]
[1744389968368,6.27433,1570.2,1569.6,0.52343343]
[1744389968573,6.37263,1570.0,1569.6,4.48254]
[1744389968771,5.63529,1569.9,1569.8,1.27465]
[1744389968971,5.63529,1569.9,1569.8,4.48245]
[1744389969171,5.63529,1569.9,1569.8,3.2078]
[1744389969877,1.27465,1569.8,1569.7,0.00953652]
[1744389970076,5.68295,1569.8,1569.7,0.00953652]
[1744389971075,1.27482,1569.6,1569.5,9.8525973]
[1744389971377,9.32562,1569.6,1569.5,3.37092959]
[1744389971568,14.32562,1569.6,1569.5,1.97967959]
[1744389972473,14.32562,1569.6,1569.5,0.70349959]
[1744389972681,1.2749,1569.5,1569.4,14.84334682]
[1744389972982,3.2083,1569.5,1569.4,14.84334682]
[1744389973171,12.9174,1569.5,1569.2,24.42385406]
[1744389973368,4.48286,1569.3,1569.2,24.42385406]
[1744389973570,9.32486,1569.3,1569.2,24.42385406]
[1744389973771,9.32486,1569.3,1568.8,2.4028]
[1744389973772,1.27539,1568.9,1568.8,2.4028]
[1744389974380,1.27536,1569.0,1568.8,3.67827]
[1744389974570,3.18791,1569.2,1568.8,2.4028]
[1744389974571,1.27539,1568.9,1568.8,2.4028]
[1744389975275,1.27539,1568.9,1568.8,3.67827]
[1744389975481,1.27539,1568.9,1568.8,2.4028]
[1744389975677,1.27535,1569.0,1568.8,2.4028]
[1744389975881,3.66217,1569.1,1568.9,4.48314]
[1744389976184,1.2753,1569.0,1568.9,3.2078]
[1744389976378,3.7022,1569.0,1568.9,6.73449]
[1744389976578,3.7022,1569.0,1568.9,5.4591]
[1744389977475,3.7022,1569.0,1568.9,6.73449]
[1744389977785,3.7022,1569.0,1568.9,5.4591]
[1744389977982,1.27524,1569.1,1569.0,1.27528]
[1744389978176,1.27524,1569.1,1569.0,3.52658]
[1744389978378,5.72741,1569.2,1569.0,2.2513]
[1744389978676,4.4522,1569.2,1569.1,1.27522]
[1744389978876,1.27522,1569.1,1569.0,3.52654]
[1744389979678,5.7274,1569.2,1569.0,3.52654]
[1744389979886,1.27509,1569.3,1569.1,3.2078]
[1744389980088,2.4545,1569.4,1569.2,1.27511]
[1744389980280,1.27509,1569.3,1569.2,3.72961]
[1744389981290,1.27509,1569.3,1569.2,2.4545]
[1744389981785,1.27509,1569.3,1569.2,3.72964]
[1744389981992,3.72954,1569.4,1569.3,1.27506]
[1744389982191,1.27504,1569.4,1569.3,6.93736]
[1744389982388,1.27493,1569.5,1569.4,1.27495]
[1744389982582,1.27482,1569.6,1569.5,1.2749]
[1744389982789,0.00953652,1569.7,1569.6,1.27482]
[1744389983092,0.00953652,1569.7,1569.6,5.28732]
[1744389983890,1.28427652,1569.7,1569.6,4.0125]
[1744389984791,1.28427652,1569.7,1569.6,5.28732]
[1744389985094,1.28427652,1569.7,1569.6,4.0125]
[1744389985497,1.27482,1569.6,1569.5,0.00635772]
[1744389985698,3.59532,1569.6,1569.5,0.00635772]
[1744389985992,3.59532,1569.6,1569.5,1.28125772]
[1744389986492,3.59532,1569.6,1569.5,0.00635772]
[1744389986695,1.28434652,1569.7,1569.6,1.27482]
[1744389986990,0.00953652,1569.7,1569.6,1.27482]
[1744389987890,0.00953652,1569.7,1569.6,6.11782]
[1744389988095,0.00953652,1569.7,1569.6,11.11782]
[1744389990187,0.00953652,1569.7,1569.6,46.91782]
[1744389990994,1.28427652,1569.7,1569.6,46.91782]
[1744389991194,1.28427652,1569.7,1569.6,6.11782]
[1744389991391,1.28427652,1569.7,1569.5,4.48897772]
[1744389991392,1.27482,1569.6,1569.5,4.48897772]
[1744389991699,1.27482,1569.6,1569.5,0.00635772]
[1744389992196,3.61122,1569.6,1569.5,0.00635772]
[1744389992794,3.61122,1569.6,1569.5,4.48905772]
[1744389992992,0.00953652,1569.7,1569.6,1.27482]
[1744389993390,0.00953652,1569.7,1569.6,3.73372]
[1744389994297,0.00953652,1569.7,1569.6,8.73372]
[1744389996895,0.00953652,1569.7,1569.6,5.73762]
[1744389997093,1.28427652,1569.7,1569.6,5.73762]
[1744389998294,0.00953652,1569.7,1569.6,5.73762]
[1744389998797,0.00953652,1569.7,1569.6,10.57962]
[1744389999899,1.27446,1570.1,1570.0,1.27449]
[1744390000396,3.5104,1570.2,1570.1,1.27441]
[1744390000597,1.999,1570.3,1570.2,1.27433]
[1744390000789,4.4189,1570.4,1570.0,5.5126]
[1744390000991,1.27441,1570.1,1570.0,3.5792]
[1744390001193,1.27449,1570.0,1569.9,5.44269]
[1744390001393,1.27444,1570.1,1570.0,1.27442]
[1744390001897,3.66081,1570.2,1570.1,1.27441]
[1744390002101,2.3864,1570.2,1570.1,1.27441]
[1744390002394,1.27427,1570.3,1570.2,1.27425]
[1744390002787,3.66067,1570.3,1570.2,1.27425]
[1744390002989,2.3864,1570.3,1570.0,5.49101]
[1744390003190,1.27441,1570.1,1570.0,2.3048]
[1744390003389,1.27449,1570.0,1569.9,8.65051]
[1744390003701,5.6726,1570.2,1570.1,1.27441]
[1744390004301,4.3982,1570.2,1570.1,1.27441]
[1744390004801,3.31622652,1570.4,1570.3,1.27425]
[1744390005093,2.47803652,1570.4,1570.3,1.27425]
[1744390005298,0.00953652,1570.4,1570.3,1.27425]
[1744390005498,0.00953652,1570.4,1570.3,3.63055]
[1744390006202,0.00953652,1570.4,1570.3,6.83835]
[1744390006507,7.43740247,1570.7,1570.6,1.274]
[1744390007100,9.78180247,1570.7,1570.6,1.274]
[1744390007301,7.43740247,1570.7,1570.6,3.5515]
[1744390007694,7.43740247,1570.7,1570.6,8.3905]
[1744390008503,7.43740247,1570.7,1570.6,54.1905]
[1744390008809,9.92607315,1570.8,1570.7,1.27392]
[1744390008810,0.00953652,1570.8,1570.7,1.27392]
[1744390009004,0.00953652,1570.8,1570.7,6.75922]
[1744390011203,6.16075247,1571.3,1571.2,1.27352]
[1744390011410,7.43419247,1571.3,1571.2,1.27352]
[1744390011603,8.50605247,1571.3,1571.2,1.27352]
[1744390011802,8.50605247,1571.3,1571.2,3.57532]
[1744390012004,6.16075247,1571.3,1571.2,3.57532]
[1744390012401,2.35483652,1571.4,1571.3,1.27344]
[1744390013103,3.62819652,1571.4,1571.3,1.27344]
[1744390013406,2.35483652,1571.4,1571.3,1.27344]
[1744390014906,0.00953652,1571.4,1571.3,4.48124]
[1744390015105,0.00953652,1571.4,1571.3,11.32424]
[1744390015506,4.837,1572.0,1571.7,1.27308]
[1744390015710,7.58729,1571.9,1571.5,1.27325]
[1744390015907,2.3205,1571.8,1571.4,5.68372]
[1744390016104,5.50315,1571.8,1571.4,1.27332]
[1744390016305,1.27324,1571.6,1571.4,1.27333]
[1744390016505,1.27336,1571.4,1571.3,3.62657]
[1744390016814,3.59379,1571.5,1571.4,1.27336]
[1744390016998,3.58080039,1571.5,1571.4,1.27336]
[1744390017402,4.39191039,1571.5,1571.4,1.27336]
[1744390017710,0.00953652,1571.7,1571.6,1.27319]
[1744390018211,1.28264652,1571.7,1571.6,1.27319]
[1744390018410,1.27319,1571.6,1571.5,1.27322]
[1744390018610,1.27328,1571.5,1571.4,1.2733]
[1744390018908,1.27336,1571.4,1571.3,0.00953652]
[1744390019109,0.00345309,1571.3,1571.2,1.27347]
[1744390019505,3.36152,1571.5,1571.3,1.26990691]
[1744390019813,2.07521039,1571.5,1571.4,1.27336]
[1744390020209,4.46621039,1571.5,1571.4,1.27336]
[1744390020507,2.391,1571.5,1571.4,4.48116]
[1744390020714,0.00953652,1571.7,1571.6,1.27319]
[1744390022115,0.00953652,1571.7,1571.6,4.48099]
[1744390023311,1.27287,1572.1,1572.0,1.27287]
[1744390023509,3.53047,1572.1,1572.0,1.27287]
[1744390024014,4.48032,1572.5,1572.4,1.27255]
[1744390024217,1.27255,1572.4,1572.3,1.27257]
[1744390024412,1.27252,1572.5,1572.4,1.27255]
[1744390024602,1.28205652,1572.5,1572.4,1.27255]
[1744390024809,1.27255,1572.4,1572.3,1.27256]
[1744390025112,3.21733652,1572.5,1572.2,1.28218652]
[1744390025416,3.70473,1572.3,1572.2,0.00953652]
[1744390025817,8.70473,1572.3,1572.2,0.00953652]
[1744390026019,3.70473,1572.3,1572.2,0.00953652]
[1744390026215,3.70473,1572.3,1572.2,1.28224652]
[1744390027821,8.70473,1572.3,1572.2,0.00953652]
[1744390028217,3.70473,1572.3,1572.2,0.00953652]
[1744390029621,8.70473,1572.3,1572.2,0.00953652]
[1744390030526,1.27303,1571.8,1571.7,44.01878]
[1744390030727,1.27301,1571.9,1571.8,1.27301]
[1744390031024,3.58471,1571.9,1571.8,1.27301]
[1744390031423,1.27303,1571.8,1571.7,5.52656039]
[1744390031619,3.58473,1571.8,1571.7,1.27305]
[1744390032020,4.834,1572.1,1571.6,122.97549608]
[1744390032226,3.58459,1572.0,1571.9,1.2729]
[1744390032916,2.3117,1572.0,1571.9,1.2729]
[1744390033122,2.3117,1572.0,1571.9,3.5937]
[1744390033321,8.01354,1572.4,1571.9,3.5937]
[1744390033322,0.00953652,1572.5,1572.1,1.27279]
[1744390033522,3.31602652,1572.5,1572.4,1.27255]
[1744390033824,1.28202652,1572.5,1572.4,1.27255]
[1744390034321,1.28202652,1572.5,1572.4,3.51605]
[1744390034524,0.00953652,1572.5,1572.4,3.51605]
[1744390035624,1.28200652,1572.5,1572.4,3.51605]
[1744390035823,1.27255,1572.4,1572.3,1.27261]
[1744390036025,1.28203652,1572.5,1572.4,1.27255]
[1744390036342,0.00953652,1572.5,1572.4,1.27255]
[1744390036523,0.00953652,1572.5,1572.4,4.48035]
[1744390037230,0.00953652,1572.5,1572.4,6.79635]
[1744390038238,4.831,1573.1,1572.5,3.181]
[1744390038439,4.831,1573.1,1572.8,1.28900401]
[1744390038440,3.68679,1572.9,1572.8,1.28900401]
[1744390039132,3.68674,1572.9,1572.8,1.28900401]
[1744390039433,3.68674,1572.9,1572.8,0.01680401]
[1744390041228,6.89454,1572.9,1572.8,0.01680401]
[1744390041437,3.68674,1572.9,1572.8,0.01680401]
[1744390043435,3.68674,1572.9,1572.8,1.28902401]
[1744390043632,3.68674,1572.9,1572.8,3.69072401]
[1744390043831,0.00953652,1573.0,1572.9,1.27214]
[1744390044035,0.00953652,1573.0,1572.9,3.69064401]
[1744390044238,1.28159652,1573.0,1572.9,0.01680401]
[1744390044427,3.56109652,1573.0,1572.9,0.01680401]
[1744390045736,6.76889652,1573.0,1572.9,0.01680401]
[1744390046037,11.76889652,1573.0,1572.9,0.01680401]
[1744390046432,16.59889652,1573.0,1572.9,0.01680401]
[1744390047538,8.39109652,1573.0,1572.9,0.01680401]
[1744390047739,3.56109652,1573.0,1572.9,0.01680401]
[1744390047938,3.56109652,1573.0,1572.9,1.28894401]
[1744390048241,0.00953652,1573.0,1572.9,3.67694401]
[1744390048629,1.28159652,1573.0,1572.9,3.67694401]
[1744390049340,0.00953652,1573.0,1572.9,3.67694401]
[1744390050837,0.00953652,1573.0,1572.9,5.64884401]
[1744390051941,0.00953652,1573.0,1572.9,8.85664401]
[1744390052340,3.23398,1573.4,1573.3,1.27182]
[1744390052537,3.52118,1573.4,1573.3,1.27182]
[1744390052744,3.52118,1573.4,1573.3,1.28862401]
[1744390052930,3.52118,1573.4,1573.3,0.01680401]
[1744390053134,1.27155,1573.7,1573.3,8.19619401]
[1744390053332,3.52095,1573.7,1573.5,0.01680401]
[1744390053535,3.53048652,1573.7,1573.6,1.27158]
[1744390053748,3.53048652,1573.7,1573.6,1.28838401]
[1744390054138,0.00953652,1573.7,1573.6,3.69278401]
[1744390054342,1.27133,1573.9,1573.8,1.27138]
[1744390054634,1.27133,1573.9,1573.8,1.27141]
[1744390054945,1.27133,1573.9,1573.8,0.01680401]
[1744390055147,6.27133,1573.9,1573.8,0.01680401]
[1744390055351,12.69283,1573.9,1573.8,0.01680401]
[1744390055836,7.69283,1573.9,1573.8,0.01680401]
[1744390057144,12.69283,1573.9,1573.8,0.01680401]
[1744390057340,1.27158,1573.6,1573.5,0.00953652]
[1744390057537,1.27158,1573.6,1573.5,3.66029652]
[1744390057745,1.27151,1573.7,1573.6,1.27158]
[1744390058049,1.2715,1573.7,1573.6,3.65068]
[1744390058248,1.2715,1573.7,1573.6,2.3791]
[1744390058545,1.27158,1573.6,1573.5,2.00073652]
[1744390058948,1.27158,1573.6,1573.5,0.00953652]
[1744390059151,1.27158,1573.6,1573.5,3.71063652]
[1744390059355,1.27158,1573.6,1573.5,2.43903652]
[1744390059649,1.27158,1573.6,1573.5,0.00953652]
[1744390060144,1.27158,1573.6,1573.5,2.43903652]
[1744390060450,1.27158,1573.6,1573.5,0.00953652]
[1744390061035,1.27158,1573.6,1573.5,2.43903652]
[1744390061238,2.3751,1573.7,1573.5,2.43903652]
[1744390061446,2.3751,1573.7,1573.6,1.27158]
[1744390061747,1.27147,1573.8,1573.6,1.27158]
[1744390061948,3.70357,1573.8,1573.7,2.4739]
[1744390062148,3.70357,1573.8,1573.7,3.7454]
[1744390062349,1.27141,1573.8,1573.7,3.7454]
[1744390062546,1.27141,1573.8,1573.7,2.4739]
[1744390063053,1.27141,1573.8,1573.7,3.7454]
[1744390063244,3.70351,1573.8,1573.7,2.4739]
[1744390063443,3.70351,1573.8,1573.5,4.83453652]
[1744390063444,5.6399,1573.8,1573.5,0.00953652]
[1744390063645,1.27158,1573.6,1573.5,0.00953652]